[Event "*** Titled Tuesday Blitz"]
[Site "Chess.com"]
[Date "2021.04.06"]
[Round "5"]
[White "Pawnpusherschessaccademy"]
[Black "WiktoriaPOL"]
[Result "0-1"]
[WhiteElo "2219"]
[BlackElo "2044"]
[TimeControl "180+1"]
[EndTime "10:59:01 PDT"]
[Termination "WiktoriaPOL won by resignation"]

1. d4 {[%clk 0:02:41.7]} 1... d5 {[%clk 0:02:57.4]} 2. c4 {[%clk 0:02:41.7]}
2... e5 {[%clk 0:02:56.1]} 3. dxe5 {[%clk 0:02:41.5]} 3... d4 {[%clk 0:02:55.5]}
4. Nf3 {[%clk 0:02:42]} 4... Nc6 {[%clk 0:02:54.7]} 5. a3 {[%clk 0:02:42.4]}
5... a5 {[%clk 0:02:53.1]} 6. Nbd2 {[%clk 0:02:41.2]} 6... a4 {[%clk 0:02:43.7]}
7. g3 {[%clk 0:02:36.3]} 7... Nge7 {[%clk 0:02:42.6]} 8. Ne4 {[%clk 0:02:34.9]}
8... Ng6 {[%clk 0:02:38]} 9. Bg5 {[%clk 0:02:32.7]} 9... Be7 {[%clk 0:02:33.7]}
10. Bf4 {[%clk 0:02:24.2]} 10... Bf5 {[%clk 0:02:29.5]} 11. Ned2 {[%clk
0:02:16.8]} 11... O-O {[%clk 0:02:08.6]} 12. Bg2 {[%clk 0:02:16.3]} 12... d3
{[%clk 0:01:59.4]} 13. e4 {[%clk 0:02:15.5]} 13... Nxf4 {[%clk 0:01:56.2]} 14.
gxf4 {[%clk 0:02:12.5]} 14... Bg4 {[%clk 0:01:56]} 15. O-O {[%clk 0:02:09.3]}
15... Nd4 {[%clk 0:01:53.7]} 16. h3 {[%clk 0:01:56]} 16... Bh5 {[%clk
0:01:43.6]} 17. b3 {[%clk 0:01:32.3]} 17... Ne2+ {[%clk 0:01:33.8]} 18. Kh2
{[%clk 0:01:31.7]} 18... Nxf4 {[%clk 0:01:30.2]} 19. bxa4 {[%clk 0:01:24.7]}
19... Ra6 {[%clk 0:01:26.5]} 20. Rg1 {[%clk 0:01:23.6]} 20... Rg6 {[%clk
0:01:19.9]} 21. Bh1 {[%clk 0:01:20.4]} 21... Qd7 {[%clk 0:01:17.5]} 22. Qf1
{[%clk 0:01:17]} 22... Rxg1 {[%clk 0:01:06.5]} 23. Nxg1 {[%clk 0:01:16.5]} 23...
Be2 {[%clk 0:01:05.2]} 24. Qb1 {[%clk 0:01:07]} 24... Bh4 {[%clk 0:00:47.6]} 25.
Qe1 {[%clk 0:00:53.1]} 25... Qe6 {[%clk 0:00:43.6]} 26. Rb1 {[%clk 0:00:52]}
26... Qxe5 {[%clk 0:00:41.3]} 27. Ndf3 {[%clk 0:00:28.8]} 27... Qh5 {[%clk
0:00:18.5]} 28. Qd2 {[%clk 0:00:21.5]} 28... Qh6 {[%clk 0:00:10.7]} 29. Rb5
{[%clk 0:00:19.5]} 29... Bxf2 {[%clk 0:00:09.2]} 30. Rf5 {[%clk 0:00:18.1]}
30... Bxg1+ {[%clk 0:00:07.7]} 31. Nxg1 {[%clk 0:00:18.7]} 31... g5 {[%clk
0:00:05.4]} 32. Qe3 {[%clk 0:00:17.7]} 32... Bg4 {[%clk 0:00:05.2]} 33. Qg3
{[%clk 0:00:18.1]} 33... Bxf5 {[%clk 0:00:04.4]} 34. exf5 {[%clk 0:00:18.1]}
34... f6 {[%clk 0:00:04.3]} 35. Bd5+ {[%clk 0:00:18.2]} 35... Nxd5 {[%clk
0:00:03.6]} 36. Nf3 {[%clk 0:00:19.1]} 36... Nf4 {[%clk 0:00:03.3]} 37. Nd4
{[%clk 0:00:18.7]} 37... Qg7 {[%clk 0:00:03.4]} 38. Nb5 {[%clk 0:00:18.7]} 38...
Qe7 {[%clk 0:00:03.2]} 39. Qf3 {[%clk 0:00:18.1]} 39... d2 {[%clk 0:00:03.5]}
40. Kg3 {[%clk 0:00:18]} 40... d1=Q {[%clk 0:00:03.1]} 41. Qxd1 {[%clk
0:00:17.5]} 41... Qe3+ {[%clk 0:00:03.4]} 42. Qf3 {[%clk 0:00:18.1]} 42... Qxf3+
{[%clk 0:00:03.5]} 43. Kxf3 {[%clk 0:00:19]} 43... Rd8 {[%clk 0:00:03.5]} 44.
Nxc7 {[%clk 0:00:19]} 44... Rd3+ {[%clk 0:00:03.3]} 45. Ke4 {[%clk 0:00:19.6]}
45... Rxa3 {[%clk 0:00:03.1]} 46. Nd5 {[%clk 0:00:18.7]} 46... Nxh3 {[%clk
0:00:02.2]} 47. Nxf6+ {[%clk 0:00:18.5]} 47... Kf7 {[%clk 0:00:02.7]} 48. Ng4
{[%clk 0:00:18]} 48... h5 {[%clk 0:00:02.6]} 49. Ne5+ {[%clk 0:00:18.9]} 49...
Kf6 {[%clk 0:00:02.5]} 50. Nd7+ {[%clk 0:00:19.2]} 50... Ke7 {[%clk 0:00:02.8]}
51. Nc5 {[%clk 0:00:19.8]} 51... Kd6 {[%clk 0:00:02.8]} 52. Nxb7+ {[%clk
0:00:20]} 52... Kc6 {[%clk 0:00:02.9]} 53. Na5+ {[%clk 0:00:20.1]} 53... Kb6
{[%clk 0:00:02.7]} 54. f6 {[%clk 0:00:17.3]} 54... Nf4 {[%clk 0:00:02.5]} 55. f7
{[%clk 0:00:17.3]} 55... Ng6 {[%clk 0:00:02.5]} 56. Kf5 {[%clk 0:00:16.2]} 56...
Nf8 {[%clk 0:00:02.6]} 57. c5+ {[%clk 0:00:13.6]} 57... Kxa5 {[%clk 0:00:02.7]}
58. Kf6 {[%clk 0:00:14.5]} 58... Rf3+ {[%clk 0:00:01.8]} 59. Kg7 {[%clk
0:00:14.7]} 59... Nd7 {[%clk 0:00:02.1]} 60. Kg6 {[%clk 0:00:14.4]} 60... Nxc5
{[%clk 0:00:01.8]} 61. Kxg5 {[%clk 0:00:13.8]} 61... Nd7 {[%clk 0:00:02.1]} 62.
Kg6 {[%clk 0:00:13.9]} 62... Ne5+ {[%clk 0:00:01.8]} 63. Kg5 {[%clk 0:00:13.9]}
63... Rxf7 {[%clk 0:00:02.7]} 64. Kxh5 {[%clk 0:00:13.8]} 64... Kxa4 {[%clk
0:00:03.4]} 65. Kg5 {[%clk 0:00:14.2]} 65... Kb5 {[%clk 0:00:03.8]} 66. Kh5
{[%clk 0:00:15.1]} 66... Kc5 {[%clk 0:00:04.3]} 67. Kg5 {[%clk 0:00:16]} 67...
Kd5 {[%clk 0:00:04.8]} 68. Kh5 {[%clk 0:00:16.9]} 68... Ke4 {[%clk 0:00:05.3]}
69. Kg5 {[%clk 0:00:17.8]} 69... Rg7+ {[%clk 0:00:05.5]} 0-1

[Event "*** Titled Tuesday Blitz"]
[Site "Chess.com"]
[Date "2021.04.06"]
[Round "5"]
[White "BogdanDeac"]
[Black "DeTimmerman"]
[Result "1-0"]
[WhiteElo "3062"]
[BlackElo "2838"]
[TimeControl "180+1"]
[EndTime "10:59:02 PDT"]
[Termination "BogdanDeac won by resignation"]

1. e4 {[%clk 0:02:59.5]} 1... e5 {[%clk 0:02:59.8]} 2. Nf3 {[%clk 0:02:59.1]}
2... Nc6 {[%clk 0:03:00.1]} 3. Bc4 {[%clk 0:02:59.1]} 3... Nf6 {[%clk
0:02:59.9]} 4. Ng5 {[%clk 0:02:59.1]} 4... Bc5 {[%clk 0:02:58.3]} 5. Bxf7+
{[%clk 0:02:33.3]} 5... Ke7 {[%clk 0:02:58.3]} 6. Bb3 {[%clk 0:02:32.2]} 6...
Rf8 {[%clk 0:02:58.8]} 7. O-O {[%clk 0:02:30.3]} 7... h6 {[%clk 0:02:54.4]} 8.
Nf3 {[%clk 0:02:26.4]} 8... d6 {[%clk 0:02:54.8]} 9. c3 {[%clk 0:01:24.2]} 9...
Bg4 {[%clk 0:02:54.7]} 10. h3 {[%clk 0:01:18.8]} 10... Bh5 {[%clk 0:02:54.6]}
11. d4 {[%clk 0:01:13.7]} 11... exd4 {[%clk 0:02:41.4]} 12. Qd3 {[%clk 0:01:02]}
12... Bxf3 {[%clk 0:02:34.5]} 13. Qxf3 {[%clk 0:00:57.7]} 13... Ne5 {[%clk
0:02:32.8]} 14. Qg3 {[%clk 0:00:37.2]} 14... g5 {[%clk 0:02:30.3]} 15. cxd4
{[%clk 0:00:33.3]} 15... Bxd4 {[%clk 0:02:31.2]} 16. Nc3 {[%clk 0:00:32.7]}
16... Qe8 {[%clk 0:02:26.8]} 17. Be3 {[%clk 0:00:11.9]} 17... Bxc3 {[%clk
0:02:17.1]} 18. bxc3 {[%clk 0:00:11.6]} 18... Nh5 {[%clk 0:02:15.3]} 19. Qh2
{[%clk 0:00:11.4]} 19... Nf4 {[%clk 0:02:14.9]} 20. f3 {[%clk 0:00:08.5]} 20...
b5 {[%clk 0:01:53.4]} 21. Kh1 {[%clk 0:00:08.2]} 21... a5 {[%clk 0:01:49.3]} 22.
g3 {[%clk 0:00:07.3]} 22... Nh5 {[%clk 0:01:48.9]} 23. f4 {[%clk 0:00:07.2]}
23... Qg6 {[%clk 0:01:32.6]} 24. f5 {[%clk 0:00:06.8]} 24... Qe8 {[%clk
0:01:32.7]} 25. Bd4 {[%clk 0:00:06.1]} 25... Nf6 {[%clk 0:01:13.1]} 26. Bxe5
{[%clk 0:00:05.2]} 26... dxe5 {[%clk 0:01:14]} 27. g4 {[%clk 0:00:05.8]} 27...
Kd7 {[%clk 0:01:04.3]} 28. Be6+ {[%clk 0:00:05.2]} 28... Kc6 {[%clk 0:01:04.3]}
29. Qxe5 {[%clk 0:00:05.4]} 29... Qe7 {[%clk 0:00:57.6]} 30. a4 {[%clk
0:00:04.7]} 30... Rab8 {[%clk 0:00:52]} 31. Rfb1 {[%clk 0:00:03.6]} 31... Qc5
{[%clk 0:00:48.4]} 32. axb5+ {[%clk 0:00:03.6]} 32... Rxb5 {[%clk 0:00:49.3]}
33. Qxc5+ {[%clk 0:00:04]} 33... Rxc5 {[%clk 0:00:47.8]} 34. Ra4 {[%clk
0:00:04.2]} 34... Rd8 {[%clk 0:00:44.9]} 35. Rb2 {[%clk 0:00:03.2]} 35... Rd3
{[%clk 0:00:42.3]} 36. Kg2 {[%clk 0:00:02.9]} 36... Rdxc3 {[%clk 0:00:41.7]} 37.
Re2 {[%clk 0:00:02.4]} 37... Re5 {[%clk 0:00:35.2]} 38. Rd4 {[%clk 0:00:02.2]}
38... Kc5 {[%clk 0:00:22.5]} 39. Ra4 {[%clk 0:00:02.4]} 39... Kb5 {[%clk
0:00:22.1]} 40. Rd4 {[%clk 0:00:02.4]} 40... a4 {[%clk 0:00:22.4]} 41. Rb2+
{[%clk 0:00:02.3]} 41... Ka5 {[%clk 0:00:22.2]} 42. Rb8 {[%clk 0:00:02.5]} 42...
a3 {[%clk 0:00:20.5]} 43. Ra8+ {[%clk 0:00:02.7]} 43... Kb6 {[%clk 0:00:20.7]}
44. Rda4 {[%clk 0:00:03.3]} 44... Nxe4 {[%clk 0:00:18.3]} 45. Rxa3 {[%clk
0:00:03.4]} 45... Rxa3 {[%clk 0:00:18]} 46. Rxa3 {[%clk 0:00:04.3]} 46... Nc5
{[%clk 0:00:18.4]} 47. Bc4 {[%clk 0:00:04.5]} 47... Re4 {[%clk 0:00:17.6]} 48.
Bf1 {[%clk 0:00:04.7]} 48... Rf4 {[%clk 0:00:18]} 49. Re3 {[%clk 0:00:04.6]}
49... Ne4 {[%clk 0:00:17.9]} 50. Bd3 {[%clk 0:00:04]} 50... Nc5 {[%clk
0:00:16.1]} 51. Bc2 {[%clk 0:00:04.2]} 51... Nd7 {[%clk 0:00:15.4]} 52. Re6+
{[%clk 0:00:04.1]} 52... Kb5 {[%clk 0:00:15.5]} 53. Rxh6 {[%clk 0:00:04.7]}
53... Rd4 {[%clk 0:00:14.6]} 54. Kf3 {[%clk 0:00:04.3]} 54... c5 {[%clk
0:00:14.6]} 55. Ke3 {[%clk 0:00:04.5]} 55... Ne5 {[%clk 0:00:14.7]} 56. Re6
{[%clk 0:00:04.1]} 56... Nc4+ {[%clk 0:00:14.9]} 57. Kf3 {[%clk 0:00:04.6]}
57... Rf4+ {[%clk 0:00:15]} 58. Kg3 {[%clk 0:00:04.5]} 58... Kb4 {[%clk
0:00:15.5]} 59. Be4 {[%clk 0:00:04.3]} 59... Kc3 {[%clk 0:00:15.7]} 60. f6
{[%clk 0:00:04.7]} 60... Nd2 {[%clk 0:00:14.8]} 61. Bf5 {[%clk 0:00:05]} 61...
Nf3 {[%clk 0:00:07.4]} 62. f7 {[%clk 0:00:04.7]} 62... Nh4 {[%clk 0:00:08.3]}
63. f8=Q {[%clk 0:00:04.4]} 63... Rf3+ {[%clk 0:00:08.9]} 64. Kh2 {[%clk
0:00:05]} 64... Rf2+ {[%clk 0:00:09.8]} 65. Kg1 {[%clk 0:00:05.6]} 65... Rg2+
{[%clk 0:00:10.4]} 66. Kf1 {[%clk 0:00:06]} 66... Rd2 {[%clk 0:00:11.1]} 67.
Qf6+ {[%clk 0:00:06.3]} 67... Kb3 {[%clk 0:00:10.7]} 68. Qxg5 {[%clk 0:00:06.3]}
68... Rd1+ {[%clk 0:00:08.9]} 69. Ke2 {[%clk 0:00:06.9]} 69... Re1+ {[%clk
0:00:08.8]} 70. Kxe1 {[%clk 0:00:06.8]} 70... Nf3+ {[%clk 0:00:09.7]} 71. Kf2
{[%clk 0:00:07.3]} 71... Nxg5 {[%clk 0:00:10.6]} 72. Rb6+ {[%clk 0:00:07.8]}
72... Kc3 {[%clk 0:00:10.6]} 73. h4 {[%clk 0:00:08.5]} 1-0

[Event "*** Titled Tuesday Blitz"]
[Site "Chess.com"]
[Date "2021.04.06"]
[Round "5"]
[White "Keks2017"]
[Black "Triumphmate"]
[Result "1-0"]
[WhiteElo "2535"]
[BlackElo "2367"]
[TimeControl "180+1"]
[EndTime "10:59:02 PDT"]
[Termination "Keks2017 won by checkmate"]

1. g3 {[%clk 0:02:59.8]} 1... d5 {[%clk 0:03:00]} 2. Bg2 {[%clk 0:02:59.9]} 2...
e6 {[%clk 0:03:00.9]} 3. Nf3 {[%clk 0:02:58.9]} 3... Be7 {[%clk 0:03:01.8]} 4.
O-O {[%clk 0:02:59]} 4... Nf6 {[%clk 0:03:02.4]} 5. d3 {[%clk 0:02:59.1]} 5...
O-O {[%clk 0:03:02.8]} 6. Nbd2 {[%clk 0:02:59.3]} 6... c5 {[%clk 0:03:03.3]} 7.
e4 {[%clk 0:02:59.4]} 7... Nc6 {[%clk 0:03:03.6]} 8. Re1 {[%clk 0:02:59.6]} 8...
d4 {[%clk 0:03:04.1]} 9. e5 {[%clk 0:02:57.9]} 9... Nd5 {[%clk 0:03:04.6]} 10.
Nf1 {[%clk 0:02:57.3]} 10... f6 {[%clk 0:03:03.8]} 11. exf6 {[%clk 0:02:56.5]}
11... Bxf6 {[%clk 0:03:04.7]} 12. N1d2 {[%clk 0:02:54.7]} 12... Bd7 {[%clk
0:03:04.3]} 13. Ne4 {[%clk 0:02:54.5]} 13... Qe7 {[%clk 0:03:00.5]} 14. Nfd2
{[%clk 0:02:51]} 14... b5 {[%clk 0:02:58.2]} 15. Qe2 {[%clk 0:02:40.6]} 15...
Rae8 {[%clk 0:02:53.5]} 16. a3 {[%clk 0:02:38]} 16... Kh8 {[%clk 0:02:46.6]} 17.
h4 {[%clk 0:02:35]} 17... h6 {[%clk 0:02:45.6]} 18. Nf3 {[%clk 0:02:30.8]} 18...
e5 {[%clk 0:02:41.5]} 19. Nh2 {[%clk 0:02:26.9]} 19... c4 {[%clk 0:02:35.2]} 20.
dxc4 {[%clk 0:02:17]} 20... bxc4 {[%clk 0:02:36.1]} 21. Qxc4 {[%clk 0:02:16.6]}
21... Nb6 {[%clk 0:02:33.3]} 22. Qe2 {[%clk 0:01:59.5]} 22... Qf7 {[%clk
0:02:27.4]} 23. Nd6 {[%clk 0:01:53.3]} 23... Qg6 {[%clk 0:02:22.5]} 24. Nxe8
{[%clk 0:01:52.6]} 24... Rxe8 {[%clk 0:02:23.4]} 25. Be4 {[%clk 0:01:49.3]}
25... Qf7 {[%clk 0:02:16.8]} 26. h5 {[%clk 0:01:33.6]} 26... Rc8 {[%clk
0:02:14.7]} 27. Qf3 {[%clk 0:01:08]} 27... Ne7 {[%clk 0:02:01.1]} 28. Ng4 {[%clk
0:01:04.3]} 28... Qxh5 {[%clk 0:01:53.4]} 29. Nxf6 {[%clk 0:01:03.7]} 29... Qxf3
{[%clk 0:01:53.7]} 30. Bxf3 {[%clk 0:01:03.6]} 30... gxf6 {[%clk 0:01:54.3]} 31.
Bxh6 {[%clk 0:01:02.1]} 31... Rxc2 {[%clk 0:01:49.8]} 32. Rac1 {[%clk
0:00:55.9]} 32... Rxb2 {[%clk 0:01:45.7]} 33. Rc7 {[%clk 0:00:55.3]} 33... Nf5
{[%clk 0:01:43.3]} 34. Bf8 {[%clk 0:00:49.7]} 34... Kg8 {[%clk 0:01:39.2]} 35.
Bc5 {[%clk 0:00:47.5]} 35... Be6 {[%clk 0:01:34.1]} 36. Rxa7 {[%clk 0:00:44.9]}
36... Nd5 {[%clk 0:01:27.9]} 37. Rc1 {[%clk 0:00:33.6]} 37... Nc3 {[%clk
0:01:25.2]} 38. Bb4 {[%clk 0:00:32.4]} 38... Rb3 {[%clk 0:01:13.3]} 39. Bd1
{[%clk 0:00:24.7]} 39... Nxd1 {[%clk 0:01:09.6]} 40. Rxd1 {[%clk 0:00:24.6]}
40... d3 {[%clk 0:01:07]} 41. Rc1 {[%clk 0:00:24.6]} 41... Nd4 {[%clk 0:00:58]}
42. Rcc7 {[%clk 0:00:23.8]} 42... Rb1+ {[%clk 0:00:58]} 43. Kh2 {[%clk
0:00:20.2]} 43... Nf3+ {[%clk 0:00:49.5]} 44. Kg2 {[%clk 0:00:20]} 44... Bf7
{[%clk 0:00:37.9]} 45. Ra8+ {[%clk 0:00:18.5]} 45... Kg7 {[%clk 0:00:36.8]} 46.
Kxf3 {[%clk 0:00:18.2]} 46... d2 {[%clk 0:00:35.9]} 47. Bxd2 {[%clk 0:00:16.8]}
47... Kg6 {[%clk 0:00:34.8]} 48. Raa7 {[%clk 0:00:14.5]} 48... Bd5+ {[%clk
0:00:34.9]} 49. Ke2 {[%clk 0:00:14.8]} 49... Rb3 {[%clk 0:00:31.9]} 50. a4
{[%clk 0:00:14.7]} 50... Bf3+ {[%clk 0:00:32.2]} 51. Ke1 {[%clk 0:00:12.8]}
51... e4 {[%clk 0:00:28.4]} 52. a5 {[%clk 0:00:11.6]} 52... Rb1+ {[%clk
0:00:28.2]} 53. Bc1 {[%clk 0:00:11.7]} 53... Rb5 {[%clk 0:00:26.5]} 54. a6
{[%clk 0:00:11.5]} 54... Rd5 {[%clk 0:00:27.1]} 55. Bd2 {[%clk 0:00:10.8]} 55...
Ra5 {[%clk 0:00:26.5]} 56. Rc1 {[%clk 0:00:11.3]} 56... Kh5 {[%clk 0:00:24.6]}
57. Be3 {[%clk 0:00:11.3]} 57... Kg4 {[%clk 0:00:22.8]} 58. Rg7+ {[%clk
0:00:11.3]} 58... Kh3 {[%clk 0:00:23.3]} 59. Kf1 {[%clk 0:00:11.5]} 59... f5
{[%clk 0:00:20.6]} 60. Kg1 {[%clk 0:00:10.5]} 60... f4 {[%clk 0:00:19.1]} 61.
gxf4 {[%clk 0:00:09.1]} 61... Rxa6 {[%clk 0:00:19.1]} 62. f5 {[%clk 0:00:08.4]}
62... Bg4 {[%clk 0:00:15.8]} 63. Rh7+ {[%clk 0:00:07.7]} 63... Bh5 {[%clk
0:00:15.8]} 64. Rxh5+ {[%clk 0:00:07.8]} 64... Kg4 {[%clk 0:00:16.7]} 65. Rg5+
{[%clk 0:00:08.4]} 65... Kh4 {[%clk 0:00:17.6]} 66. Rg3 {[%clk 0:00:08.6]} 66...
Rf6 {[%clk 0:00:16.8]} 67. Bg5+ {[%clk 0:00:08.7]} 67... Kh5 {[%clk 0:00:16.9]}
68. Bxf6 {[%clk 0:00:09.6]} 68... e3 {[%clk 0:00:17.1]} 69. Rxe3 {[%clk
0:00:09.5]} 69... Kg4 {[%clk 0:00:17.2]} 70. Ba1 {[%clk 0:00:10.4]} 70... Kxf5
{[%clk 0:00:17.5]} 71. Kg2 {[%clk 0:00:11.3]} 71... Kg4 {[%clk 0:00:18.4]} 72.
Rce1 {[%clk 0:00:11.3]} 72... Kh5 {[%clk 0:00:19.3]} 73. Rg3 {[%clk 0:00:10.8]}
73... Kh6 {[%clk 0:00:19]} 74. Rh1# {[%clk 0:00:11.7]} 1-0

[Event "*** Titled Tuesday Blitz"]
[Site "Chess.com"]
[Date "2021.04.06"]
[Round "5"]
[White "Niktlt"]
[Black "GadimbayliA"]
[Result "0-1"]
[WhiteElo "2581"]
[BlackElo "2793"]
[TimeControl "180+1"]
[EndTime "10:59:09 PDT"]
[Termination "GadimbayliA won by checkmate"]

1. e4 {[%clk 0:03:00.9]} 1... e5 {[%clk 0:01:06.6]} 2. Bc4 {[%clk 0:02:58.5]}
2... Nf6 {[%clk 0:01:06.3]} 3. d3 {[%clk 0:02:58.4]} 3... c6 {[%clk 0:01:06.4]}
4. Nf3 {[%clk 0:02:58.4]} 4... d5 {[%clk 0:01:06.9]} 5. Bb3 {[%clk 0:02:58.8]}
5... Bb4+ {[%clk 0:01:05.9]} 6. Bd2 {[%clk 0:02:58.7]} 6... Bd6 {[%clk 0:01:06]}
7. Bg5 {[%clk 0:02:55.8]} 7... Be6 {[%clk 0:01:05.6]} 8. exd5 {[%clk 0:02:53.9]}
8... cxd5 {[%clk 0:01:06.5]} 9. O-O {[%clk 0:02:53.6]} 9... O-O {[%clk 0:01:07]}
10. Re1 {[%clk 0:02:53.9]} 10... Nc6 {[%clk 0:01:07.6]} 11. Nc3 {[%clk
0:02:53.4]} 11... Qa5 {[%clk 0:00:53.4]} 12. Bxf6 {[%clk 0:02:39.2]} 12... gxf6
{[%clk 0:00:54.3]} 13. Nh4 {[%clk 0:02:39.4]} 13... Ne7 {[%clk 0:00:54.7]} 14.
Qh5 {[%clk 0:02:37.5]} 14... Kh8 {[%clk 0:00:45.5]} 15. Qh6 {[%clk 0:02:20.8]}
15... Ng8 {[%clk 0:00:44.1]} 16. Qh5 {[%clk 0:02:20.8]} 16... Ne7 {[%clk
0:00:43.1]} 17. Qh6 {[%clk 0:02:13.1]} 17... Ng6 {[%clk 0:00:38.9]} 18. Qh5
{[%clk 0:01:26.7]} 18... Rg8 {[%clk 0:00:36.8]} 19. Nxg6+ {[%clk 0:00:58.9]}
19... Rxg6 {[%clk 0:00:26.9]} 20. Qf3 {[%clk 0:00:56.6]} 20... Bb4 {[%clk
0:00:23.7]} 21. g3 {[%clk 0:00:37.9]} 21... Rc8 {[%clk 0:00:16]} 22. h4 {[%clk
0:00:25.6]} 22... Kg7 {[%clk 0:00:13.3]} 23. Re2 {[%clk 0:00:16.9]} 23... Bxc3
{[%clk 0:00:10.1]} 24. bxc3 {[%clk 0:00:17.8]} 24... Bg4 {[%clk 0:00:10.4]} 25.
Qe3 {[%clk 0:00:15.9]} 25... Bxe2 {[%clk 0:00:09.7]} 26. Qxe2 {[%clk 0:00:16.8]}
26... Qxc3 {[%clk 0:00:09.1]} 27. Re1 {[%clk 0:00:17.2]} 27... Qc5 {[%clk
0:00:08.3]} 28. Qf3 {[%clk 0:00:16.3]} 28... Qb4 {[%clk 0:00:08.5]} 29. Re3
{[%clk 0:00:12.9]} 29... Rd8 {[%clk 0:00:04.5]} 30. Kg2 {[%clk 0:00:11]} 30...
Qxh4 {[%clk 0:00:03.5]} 31. Bxd5 {[%clk 0:00:10.6]} 31... Qg4 {[%clk 0:00:03.1]}
32. Bxb7 {[%clk 0:00:10.8]} 32... Qxf3+ {[%clk 0:00:02.6]} 33. Bxf3 {[%clk
0:00:11.7]} 33... Re8 {[%clk 0:00:02.7]} 34. Re4 {[%clk 0:00:10.2]} 34... f5
{[%clk 0:00:02.3]} 35. Ra4 {[%clk 0:00:10.2]} 35... Re7 {[%clk 0:00:02.9]} 36.
Bd5 {[%clk 0:00:09.9]} 36... Rd6 {[%clk 0:00:02.9]} 37. c4 {[%clk 0:00:10.4]}
37... Kf6 {[%clk 0:00:03]} 38. Ra5 {[%clk 0:00:09.8]} 38... h5 {[%clk
0:00:03.3]} 39. Kf3 {[%clk 0:00:10]} 39... Kg5 {[%clk 0:00:02.9]} 40. a4 {[%clk
0:00:08.8]} 40... h4 {[%clk 0:00:03.4]} 41. gxh4+ {[%clk 0:00:08.5]} 41... Kxh4
{[%clk 0:00:04.3]} 42. Rc5 {[%clk 0:00:09]} 42... Kg5 {[%clk 0:00:04.6]} 43. a5
{[%clk 0:00:09.9]} 43... Kf6 {[%clk 0:00:04.6]} 44. Rb5 {[%clk 0:00:10.1]} 44...
Rd8 {[%clk 0:00:04.8]} 45. Ke3 {[%clk 0:00:09.2]} 45... Rd6 {[%clk 0:00:04.3]}
46. f3 {[%clk 0:00:09.4]} 46... Kg5 {[%clk 0:00:04.7]} 47. Rc5 {[%clk
0:00:09.5]} 47... f6 {[%clk 0:00:05]} 48. Rb5 {[%clk 0:00:09.7]} 48... f4+
{[%clk 0:00:05.5]} 49. Kd2 {[%clk 0:00:09.4]} 49... Kh4 {[%clk 0:00:05.5]} 50.
Rb8 {[%clk 0:00:09.2]} 50... Kg3 {[%clk 0:00:05.7]} 51. Ke2 {[%clk 0:00:08.1]}
51... Rg7 {[%clk 0:00:04.8]} 52. Be4 {[%clk 0:00:04.2]} 52... Ra6 {[%clk
0:00:04]} 53. Rb5 {[%clk 0:00:03.9]} 53... Rd6 {[%clk 0:00:04.3]} 54. c5 {[%clk
0:00:03.9]} 54... Rd4 {[%clk 0:00:04.5]} 55. c6 {[%clk 0:00:04.1]} 55... Rd8
{[%clk 0:00:02.1]} 56. a6 {[%clk 0:00:03.1]} 56... Rc8 {[%clk 0:00:01.8]} 57.
Rb7 {[%clk 0:00:03.5]} 57... Rgc7 {[%clk 0:00:01.6]} 58. Kd2 {[%clk 0:00:02.8]}
58... f5 {[%clk 0:00:01.7]} 59. Bd5 {[%clk 0:00:02.7]} 59... Rxc6 {[%clk
0:00:02.1]} 60. Bxc6 {[%clk 0:00:03.6]} 60... Rxc6 {[%clk 0:00:03]} 61. Rxa7
{[%clk 0:00:03.8]} 61... Kxf3 {[%clk 0:00:03.5]} 62. Ra8 {[%clk 0:00:03.9]}
62... e4 {[%clk 0:00:03.9]} 63. a7 {[%clk 0:00:03.8]} 63... e3+ {[%clk 0:00:04]}
64. Kd1 {[%clk 0:00:04.3]} 64... Ra6 {[%clk 0:00:04.3]} 65. Kc2 {[%clk
0:00:03.4]} 65... e2 {[%clk 0:00:04.4]} 66. d4 {[%clk 0:00:04]} 66... e1=Q
{[%clk 0:00:04.2]} 67. d5 {[%clk 0:00:04.9]} 67... Qe4+ {[%clk 0:00:04.2]} 68.
Kc3 {[%clk 0:00:05.2]} 68... Ra3+ {[%clk 0:00:04.8]} 69. Kb2 {[%clk 0:00:05.2]}
69... Qb4+ {[%clk 0:00:05.4]} 70. Kc2 {[%clk 0:00:06.1]} 70... Qc3+ {[%clk
0:00:05.8]} 71. Kd1 {[%clk 0:00:06.2]} 71... Ra1# {[%clk 0:00:06.7]} 0-1